Workbook

Sheet Bilans_2017
A1: FUNDACJA NUTRICIA | D1: BILANS
A2: ul. Bobrowiecka 8 | G2: REGON: 011957577
A3: 00-728 Warszawa | D3: na dzień 31 grudnia 2017 r. | G3: NIP : 113-21-26-885
A5: Bilans sporządzony zgodnie z załącznikiem nr 4 ustawy o rachunkowości
A7: Wiersz | B7: AKTYWA | C7: Stan na | E7: Wiersz | F7: PASYWA | G7: Stan na
A8: 1 | B8: 2 | C8: początek roku | D8: koniec roku | E8: 1 | F8: 2 | G8: początek roku | H8: koniec roku
A9: A | B9: Aktywa trwałe | C9: =SUM(C10:C14) -> 1,016.32 | D9: =SUM(D10:D14) -> 0.00 | E9: A | F9: Fundusze własne | G9: =SUM(G10:G13) -> 200,881.68 | H9: =SUM(H10:H13) -> 214,035.79
A10: I | B10: Wartości niematerialne i prawne | E10: I | F10: Fundusz podstawowy | G10: 50,000.00 | H10: 50,000.00
A11: II | B11: Rzeczowe aktywa trwałe | C11: =3387.64-2371.32 -> 1,016.32 | D11: 0.00 | E11: II | F11: Fundusz z aktualizacji wyceny
A12: III | B12: Należności długoterminowe | E12: III | F12: Należne wpłaty na kapitał podstawowy (wielkość ujemna)
A13: IV | B13: Inwestycje długoterminowe | E13: IV | F13: Wynik finansowy netto za rok obrotowy | G13: =SUM(G14:G15) -> 150,881.68 | H13: =SUM(H14:H15) -> 164,035.79
A14: V | B14: Długoterminowe rozliczenia międzyokresowe | E14: 1 | F14: Nadwyżka przychodów nad kosztami (wielkość dodatnia) | G14: 150,881.68 | H14: =-4036436.82+5200+4184875+133.7+50000+150881.68+678.91+559-144300-46063.5-508.18-984 -> 164,035.79
A15: B | B15: Aktywa obrotowe | C15: =SUM(C16:C21) -> 235,710.84 | D15: =SUM(D16:D21) -> 213,074.19 | E15: 2 | F15: Nadwyżka kosztów nad przychodami (wielkość ujemna)
A16: I | B16: Zapasy rzeczowych aktywów obrotowych | E16: B | F16: Zobowiązania i rezerwy na zobowiązania | G16: =SUM(G17:G19)+G18+G22 -> 41,659.75 | H16: =SUM(H17+H19+H18+H22) -> 1,585.27
A17: II | B17: Należności krótkoterminowe | C17: =3000+7500+7500+7500+7500+7500+7500+7500 -> 55,500.00 | D17: =3000+7500+7500+3000+15.81 -> 21,015.81 | E17: I | F17: Zobowiązania z tytułu kredytów i pożyczek
E18: II | F18: Rezerwy na zobowiązania
E19: III | F19: Zobowiązania krótkoterminowe i fundusze specjalne | G19: =SUM(G20:G21) -> 41,659.75 | H19: =SUM(H20:H21) -> 1,585.27
E20: 1 | F20: Inne zobowiązania | G20: =2460+37555+80.68+400+134.07+580+450 -> 41,659.75 | H20: =-2460+984+2460+300+294+6.47+0.8 -> 1,585.27
A21: III | B21: Inwestycje krótkoterminowe | C21: =SUM(C22:C23) -> 180,210.84 | D21: =SUM(D22:D23) -> 192,058.38 | E21: 2 | F21: Fundusze specjalne
A22: 1 | B22: Środki pieniężne | C22: 180,210.84 | D22: =142058.38+50000 -> 192,058.38 | E22: IV | F22: Rozliczenia międzyokresowe | G22: =SUM(G23:G24) -> 0.00 | H22: =SUM(H23:H24) -> 0.00
A23: 2 | B23: Pozostałe aktywa finansowe | E23: 1 | F23: Rozliczenia międzyokresowe przychodów
A24: IV | B24: Krótkoterminowe rozliczenia międzyokresowe | C24: 5,814.27 | D24: 2,546.87 | E24: 2 | F24: Inne rozliczenia międzyokresowe
B25: Suma bilansowa | C25: =SUM(C9+C15+C24) -> 242,541.43 | D25: =SUM(D9+D15+D24) -> 215,621.06 | F25: Suma bilansowa | G25: =SUM(G9+G16) -> 242,541.43 | H25: =SUM(H9+H16) -> 215,621.06
A28: Data sporządzenia | C28: 30 marca 2018 r. | F28: Zatwierdził :
A30: Sporzadziła : Renata Kasperowicz
F31: Mariola Urbanowska - Jęcek | G31: …………………………..
F34: Marcin Gendźwiłł | G34: …………………………..
F37: Barbara Wójcicka - Bartłomiejczyk | G37: .....................................
F40: Agnieszka Dolna | G40: ........................................
F43: Marta Szulc | G43: ........................................
F46: Adam Aleksiejuk | G46: ........................................
G47: Podpisy
